[Event "121st Swiss Championship 2022"]
[Site "Samnaun-Compatsch"]
[Date "2022.07.08"]
[Round "7.10"]
[White "Manko, Mariya"]
[Black "Curien, Nicolas"]
[Result "0-1"]
[ECO "D23"]
[WhiteElo "2014"]
[BlackElo "2198"]
[Annotator "RC"]
[PlyCount "90"]
[EventDate "2022.06.28"]
[EventType "swiss"]
[EventCountry "SUI"]
[SourceTitle "playchess.com"]
[Source "ChessBase"]
[SourceQuality "1"]
[TimeControl "40/5400+30:1800+30"]

1. d4 {[%emt 0:08:36]} d5 {[%emt 0:00:06]} 2. Nf3 {[%emt 0:00:11]} Nf6 {[%emt 0:00:32]} 3. c4 {[%emt 0:00:23]} c6 {[%emt 0:00:07]} 4. Qc2 {[%emt 0:00:09]} dxc4 {[%emt 0:03:34]} 5. Qxc4 {[%emt 0:00:54]} Bf5 {[%emt 0:00:40]} 6. g3 {[%emt 0:01:33]} e6 {[%emt 0:03:47]} 7. Bg2 {[%emt 0:01:33]} Be7 {[%emt 0:03:54]} 8. O-O {[%emt 0:00:31]} O-O {[%emt 0:01:11]} 9. Nc3 {[%emt 0:01:47]} Nbd7 {[%emt 0:03:12]} 10. Re1 {[%emt 0:12:30]} Ne4 {[%emt 0:07:42]} 11. Qb3 {[%emt 0:13:13]} Qb6 {[%emt 0:13:55]} 12. Qxb6 {[%emt 0:09:06]} axb6 {[%emt 0:06:36]} 13. Ne5 {[%emt 0:01:25]} Nxe5 {[%emt 0:01:55]} 14. Nxe4 {[%emt 0:00:18]} Nc4 {[%emt 0:03:59]} 15. Nc3 {[%emt 0:03:16]} Bb4 {[%emt 0:06:04]} 16. e4 {[%emt 0:04:43]} Bg6 {[%emt 0:00:06]} 17. Rd1 {[%emt 0:03:09]} Rfd8 {[%emt 0:01:10]} 18. a3 {[%emt 0:05:54]} Nxa3 {[%emt 0:09:22]} 19. Rxa3 {[%emt 0:00:23]} Rxa3 {[%emt 0:01:03]} 20. bxa3 {[%emt 0:00:46]} Bxc3 {[%emt 0:00:15]} 21. Be3 {[%emt 0:00:07]} e5 {[%emt 0:12:27]} 22. d5 {[%emt 0:00:38]} c5 {[%emt 0:00:59]} 23. f4 {[%emt 0:03:56]} f6 {[%emt 0:01:06]} 24. fxe5 {[%emt 0:00:22]} Bxe5 {[%emt 0:05:42]} 25. Bf4 {[%emt 0:04:35]} Be8 {[%emt 0:02:50]} 26. Bxe5 {[%emt 0:08:08]} fxe5 {[%emt 0:00:05]} 27. Rc1 {[%emt 0:00:17]} Ra8 {[%emt 0:03:41]} 28. Rc3 {[%emt 0:00:32]} Bd7 {[%emt 0:01:15]} 29. Bf1 {[%emt 0:02:24]} Ba4 {[%emt 0:02:12]} 30. Rf3 {[%emt 0:10:09]} Rf8 {[%emt 0:00:36]} 31. Rc3 {[%emt 0:01:13]} Rf6 {[%emt 0:00:25]} 32. Bh3 {[%emt 0:00:58]} Kf8 {[%emt 0:01:03]} 33. Bc8 {[%emt 0:00:17]} Ke7 {[%emt 0:00:35]} 34. Bxb7 {[%emt 0:00:43]} Kd6 {[%emt 0:00:13]} 35. Bc8 {[%emt 0:01:20]} b5 {[%emt 0:00:28]} 36. Kg2 {[%emt 0:00:26]} Bd1 {[%emt 0:01:27]} 37. Ba6 {[%emt 0:00:25]} Ba4 {[%emt 0:01:35]} 38. Bb7 {[%emt 0:01:00]} c4 {[%emt 0:00:39]} 39. Rf3 {[%emt 0:01:31]} Bc2 {[%emt 0:01:56]} 40. Rxf6+ {[%emt 0:00:15]} gxf6 {[%emt 0:00:01]} 41. Kf3 {[%emt 0:01:45]} c3 {[%emt 0:03:39]} 42. Ba6 {[%emt 0:03:52]} Bxe4+ {[%emt 0:00:41]} 43. Ke3 {[%emt 0:00:05]} Kc5 {[%emt 0:04:59]} 44. d6 {[%emt 0:00:15]} Bf5 {[%emt 0:00:24]} 45. Ke2 {[%emt 0:00:56]} Kb6 {[%emt 0:00:30]} 0-1

[Event "121st Swiss Championship 2022"]
[Site "Samnaun-Compatsch"]
[Date "2022.07.08"]
[Round "7.11"]
[White "Bex, Pierre-Alain"]
[Black "Stoeri, Laura"]
[Result "0-1"]
[ECO "C90"]
[WhiteElo "2189"]
[BlackElo "2084"]
[Annotator "RC"]
[PlyCount "38"]
[EventDate "2022.06.28"]
[EventType "swiss"]
[EventCountry "SUI"]
[SourceTitle "playchess.com"]
[Source "ChessBase"]
[SourceQuality "1"]
[TimeControl "40/5400+30:1800+30"]

1. e4 {[%emt 0:02:18]} e5 {[%emt 0:00:39]} 2. Nf3 {[%emt 0:00:05]} Nc6 {[%emt 0:00:04]} 3. Bc4 {[%emt 0:00:05]} Nf6 {[%emt 0:00:25]} 4. d3 {[%emt 0:01:23]} Be7 {[%emt 0:00:22]} 5. c3 {[%emt 0:00:46]} d6 {[%emt 0:00:21]} 6. Nbd2 {[%emt 0:00:14]} O-O {[%emt 0:00:23]} 7. O-O {[%emt 0:00:07]} Na5 {[%emt 0:08:36]} 8. Bb5 {[%emt 0:00:21]} a6 {[%emt 0:00:04]} 9. Ba4 {[%emt 0:00:09]} b5 {[%emt 0:00:09]} 10. Bc2 {[%emt 0:00:13]} c5 {[%emt 0:00:14]} 11. Re1 {[%emt 0:03:53]} Re8 {[%emt 0:08:10]} 12. d4 {[%emt 0:07:30]} Qc7 {[%emt 0:08:09]} 13. b4 {[%emt 0:08:35]} cxb4 {[%emt 0:08:58]} 14. cxb4 {[%emt 0:00:07]} Nc6 {[%emt 0:00:13]} 15. a3 {[%emt 0:00:22]} Bg4 {[%emt 0:02:46]} 16. h3 {[%emt 0:00:59]} Nxd4 {[%emt 0:01:20]} 17. Bb1 {[%emt 0:04:12]} Qc3 {[%emt 0:08:13]} 18. Ra2 {[%emt 0:00:11]} Nxf3+ {[%emt 0:00:56]} 19. gxf3 {[%emt 0:01:04]} Bxh3 {[%emt 0:00:32]} 0-1

[Event "121st Swiss Championship 2022"]
[Site "Samnaun-Compatsch"]
[Date "2022.07.09"]
[Round "8.1"]
[White "Baenziger, Fabian"]
[Black "Schlegel, Igor"]
[Result "1-0"]
[ECO "D30"]
[WhiteElo "2451"]
[BlackElo "2194"]
[Annotator "RC"]
[PlyCount "77"]
[EventDate "2022.06.28"]
[EventType "swiss"]
[EventCountry "SUI"]
[SourceTitle "playchess.com"]
[Source "ChessBase"]
[SourceQuality "1"]
[TimeControl "40/5400+30:1800+30"]

1. d4 {[%emt 0:00:08]} d5 {[%emt 0:00:03]} 2. c4 {[%emt 0:00:10]} e6 {[%emt 0:00:02]} 3. Nf3 {[%emt 0:00:07]} a6 {[%emt 0:00:03]} 4. Bg5 {[%emt 0:01:06]} Be7 {[%emt 0:00:08]} 5. Bxe7 {[%emt 0:00:06]} Qxe7 {[%emt 0:00:06]} 6. Nbd2 {[%emt 0:00:42]} Nf6 {[%emt 0:00:09]} 7. g3 {[%emt 0:00:06]} b6 {[%emt 0:00:22]} 8. Rc1 {[%emt 0:02:35]} O-O {[%emt 0:39:01]} 9. Bg2 {[%emt 0:05:37]} Bb7 {[%emt 0:00:10]} 10. O-O {[%emt 0:01:48]} c5 {[%emt 0:02:56]} 11. cxd5 {[%emt 0:07:34]} exd5 {[%emt 0:00:53]} 12. dxc5 {[%emt 0:08:04]} bxc5 {[%emt 0:00:06]} 13. Nb3 {[%emt 0:00:02]} Nbd7 {[%emt 0:00:14]} 14. Na5 {[%emt 0:01:32]} Rab8 {[%emt 0:00:33]} 15. Nxb7 {[%emt 0:08:24]} Rxb7 {[%emt 0:00:06]} 16. Rc2 {[%emt 0:00:03]} Rfb8 {[%emt 0:25:58]} 17. Qc1 {[%emt 0:14:30]} Rb6 {[%emt 0:01:45]} 18. Rd1 {[%emt 0:02:14]} Re6 {[%emt 0:01:27]} 19. e3 {[%emt 0:06:05]} Rd6 {[%emt 0:00:25]} 20. b3 {[%emt 0:03:34]} h5 {[%emt 0:01:16]} 21. Qd2 {[%emt 0:06:39]} Rb5 {[%emt 0:02:29]} 22. Qe2 {[%emt 0:03:01]} g6 {[%emt 0:03:47]} 23. Ne1 {[%emt 0:02:47]} h4 {[%emt 0:04:06]} 24. Nd3 {[%emt 0:00:07]} Ne4 {[%emt 0:00:42]} 25. Nf4 {[%emt 0:01:10]} Qe5 {[%emt 0:00:36]} 26. Bxe4 {[%emt 0:05:24]} Qxe4 {[%emt 0:00:20]} 27. f3 {[%emt 0:00:16]} Qe5 {[%emt 0:01:06]} 28. Rcd2 {[%emt 0:04:08]} Nf6 {[%emt 0:02:13]} 29. e4 {[%emt 0:01:39]} d4 {[%emt 0:01:33]} 30. Kg2 {[%emt 0:00:26]} Rd8 {[%emt 0:00:59]} 31. Nd3 {[%emt 0:02:35]} Qe6 {[%emt 0:01:12]} 32. Rc1 {[%emt 0:00:39]} Rc8 {[%emt 0:00:54]} 33. Nf4 {[%emt 0:01:19]} Qb6 {[%emt 0:04:59]} 34. Rxd4 {[%emt 0:05:38]} cxd4 {[%emt 0:00:05]} 35. Rxc8+ {[%emt 0:00:02]} Kg7 {[%emt 0:00:07]} 36. Qc4 {[%emt 0:00:11]} Qa5 {[%emt 0:01:01]} 37. Rc7 {[%emt 0:03:34]} Qxa2+ {[%emt 0:00:04]} 38. Kh3 {[%emt 0:00:14]} Qxb3 {[%emt 0:00:04]} 39. Rxf7+ {[%emt 0:00:14]} 1-0

[Event "121st Swiss Championship 2022"]
[Site "Samnaun-Compatsch"]
[Date "2022.07.09"]
[Round "8.2"]
[White "Fecker, Noah"]
[Black "Pavlovic, Milos"]
[Result "1/2-1/2"]
[ECO "C70"]
[WhiteElo "2387"]
[BlackElo "2461"]
[Annotator "RC"]
[PlyCount "56"]
[EventDate "2022.06.28"]
[EventType "swiss"]
[EventCountry "SUI"]
[SourceTitle "playchess.com"]
[Source "ChessBase"]
[SourceQuality "1"]
[TimeControl "40/5400+30:1800+30"]

1. e4 {[%emt 0:00:03]} e5 {[%emt 0:00:19]} 2. Nf3 {[%emt 0:00:06]} Nc6 {[%emt 0:00:07]} 3. Bb5 {[%emt 0:00:03]} a6 {[%emt 0:00:16]} 4. Ba4 {[%emt 0:00:05]} Nge7 {[%emt 0:01:28]} 5. Nc3 {[%emt 0:07:26]} d6 {[%emt 0:00:13]} 6. O-O {[%emt 0:08:22]} Ng6 {[%emt 0:10:40]} 7. Re1 {[%emt 0:09:02]} Be7 {[%emt 0:07:51]} 8. Nd5 {[%emt 0:01:11]} O-O {[%emt 0:00:16]} 9. d3 {[%emt 0:12:40]} f5 {[%emt 0:08:06]} 10. Bb3 {[%emt 0:06:03]} Kh8 {[%emt 0:01:11]} 11. Nxe7 {[%emt 0:00:20]} Qxe7 {[%emt 0:00:51]} 12. Ng5 {[%emt 0:00:50]} h6 {[%emt 0:01:13]} 13. Qh5 {[%emt 0:05:32]} f4 {[%emt 0:00:26]} 14. Qxg6 {[%emt 0:01:19]} Qxg5 {[%emt 0:00:11]} 15. Qxg5 {[%emt 0:00:09]} hxg5 {[%emt 0:00:08]} 16. h3 {[%emt 0:02:16]} a5 {[%emt 0:29:41]} 17. Ba4 {[%emt 0:09:14]} Nb4 {[%emt 0:22:18]} 18. a3 {[%emt 0:02:05]} Na6 {[%emt 0:00:05]} 19. c3 {[%emt 0:01:12]} Nc5 {[%emt 0:00:20]} 20. Bc2 {[%emt 0:00:22]} Be6 {[%emt 0:01:04]} 21. d4 {[%emt 0:03:37]} Nb3 {[%emt 0:03:30]} 22. Bxb3 {[%emt 0:02:37]} Bxb3 {[%emt 0:00:02]} 23. Bd2 {[%emt 0:01:59]} a4 {[%emt 0:00:05]} 24. Rac1 {[%emt 0:01:15]} Rad8 {[%emt 0:04:43]} 25. f3 {[%emt 0:02:18]} Kg8 {[%emt 0:00:52]} 26. Kf2 {[%emt 0:01:45]} Rfe8 {[%emt 0:11:45]} 27. Rh1 {[%emt 0:10:55]} Kf7 28. h4 {[%emt 0:00:53]} gxh4 {[%emt 0:00:15]} 1/2-1/2

[Event "121st Swiss Championship 2022"]
[Site "Samnaun-Compatsch"]
[Date "2022.07.09"]
[Round "8.3"]
[White "Gaehwiler, Gabriel"]
[Black "Gallagher, Joseph G."]
[Result "1-0"]
[ECO "D02"]
[WhiteElo "2420"]
[BlackElo "2447"]
[Annotator "RC"]
[PlyCount "79"]
[EventDate "2022.06.28"]
[EventType "swiss"]
[EventCountry "SUI"]
[SourceTitle "playchess.com"]
[Source "ChessBase"]
[SourceQuality "1"]
[TimeControl "40/5400+30:1800+30"]

1. d4 {[%emt 0:01:16]} Nf6 {[%emt 0:00:21]} 2. Nf3 {[%emt 0:00:43]} g6 {[%emt 0:00:15]} 3. g3 {[%emt 0:00:13]} Bg7 {[%emt 0:01:12]} 4. Bg2 {[%emt 0:00:10]} O-O {[%emt 0:01:15]} 5. O-O {[%emt 0:00:07]} d5 {[%emt 0:06:34]} 6. Nbd2 {[%emt 0:19:09]} c6 {[%emt 0:08:04]} 7. Re1 {[%emt 0:06:33]} Bf5 {[%emt 0:03:33]} 8. c3 {[%emt 0:02:35]} Nbd7 {[%emt 0:06:52]} 9. Nh4 {[%emt 0:02:51]} Be6 {[%emt 0:00:46]} 10. e4 {[%emt 0:00:17]} dxe4 {[%emt 0:02:33]} 11. Nxe4 {[%emt 0:00:53]} Nxe4 {[%emt 0:00:08]} 12. Bxe4 {[%emt 0:00:54]} Qb6 {[%emt 0:08:55]} 13. Ng2 {[%emt 0:06:18]} Nf6 {[%emt 0:11:33]} 14. Bf3 {[%emt 0:03:39]} Nd5 {[%emt 0:14:21]} 15. Re2 {[%emt 0:10:38]} Rad8 {[%emt 0:02:07]} 16. Bg5 {[%emt 0:06:04]} Rfe8 {[%emt 0:07:12]} 17. Qe1 {[%emt 0:05:46]} h6 {[%emt 0:05:30]} 18. Bd2 {[%emt 0:14:58]} Kh7 {[%emt 0:01:33]} 19. c4 {[%emt 0:02:44]} Nc7 {[%emt 0:16:30]} 20. Ba5 {[%emt 0:03:04]} Qxd4 {[%emt 0:00:04]} 21. Bxc7 {[%emt 0:00:06]} Rd7 {[%emt 0:00:06]} 22. Rxe6 {[%emt 0:05:22]} Rxc7 {[%emt 0:01:16]} 23. Re2 {[%emt 0:00:16]} Qxc4 {[%emt 0:00:05]} 24. b3 {[%emt 0:01:11]} Qa6 {[%emt 0:00:52]} 25. Rd1 {[%emt 0:00:07]} e5 {[%emt 0:00:09]} 26. h4 {[%emt 0:01:15]} h5 {[%emt 0:00:25]} 27. Red2 {[%emt 0:01:49]} e4 {[%emt 0:00:45]} 28. Be2 {[%emt 0:00:40]} Qa3 {[%emt 0:00:11]} 29. Rd7 {[%emt 0:01:05]} Re7 {[%emt 0:00:35]} 30. Rxc7 {[%emt 0:00:20]} Rxc7 {[%emt 0:00:01]} 31. Qd2 {[%emt 0:00:10]} Be5 {[%emt 0:01:14]} 32. Ne3 {[%emt 0:00:53]} b5 {[%emt 0:00:08]} 33. Qc2 {[%emt 0:00:58]} f5 {[%emt 0:00:44]} 34. Bxh5 {[%emt 0:00:35]} gxh5 {[%emt 0:00:42]} 35. Nxf5 {[%emt 0:00:05]} Qb4 {[%emt 0:00:41]} 36. a3 {[%emt 0:00:26]} Qc3 {[%emt 0:00:42]} 37. Qxe4 {[%emt 0:00:14]} Kg8 {[%emt 0:00:26]} 38. Rd3 {[%emt 0:02:39]} Qc1+ {[%emt 0:00:35]} 39. Kg2 {[%emt 0:00:37]} Qc5 {[%emt 0:00:12]} 40. b4 {[%emt 0:00:42]} 1-0

[Event "121st Swiss Championship 2022"]
[Site "Samnaun-Compatsch"]
[Date "2022.07.09"]
[Round "8.4"]
[White "Gschnitzer, Adrian"]
[Black "Hakimifard, Ghazal"]
[Result "1-0"]
[ECO "B43"]
[WhiteElo "2433"]
[BlackElo "2296"]
[Annotator "RC"]
[PlyCount "85"]
[EventDate "2022.06.28"]
[EventType "swiss"]
[EventCountry "SUI"]
[SourceTitle "playchess.com"]
[Source "ChessBase"]
[SourceQuality "1"]
[TimeControl "40/5400+30:1800+30"]

1. e4 {[%emt 0:00:04]} c5 {[%emt 0:00:06]} 2. Nf3 {[%emt 0:00:10]} e6 {[%emt 0:00:04]} 3. d4 {[%emt 0:00:12]} cxd4 {[%emt 0:00:05]} 4. Nxd4 {[%emt 0:00:07]} a6 {[%emt 0:00:03]} 5. Nc3 {[%emt 0:00:17]} Qc7 {[%emt 0:00:06]} 6. Bd3 {[%emt 0:00:23]} Nf6 {[%emt 0:00:11]} 7. O-O {[%emt 0:00:36]} Nc6 {[%emt 0:00:15]} 8. Nxc6 {[%emt 0:00:28]} dxc6 {[%emt 0:00:16]} 9. f4 {[%emt 0:00:37]} e5 {[%emt 0:00:07]} 10. Qe1 {[%emt 0:00:41]} Bc5+ {[%emt 0:04:48]} 11. Kh1 {[%emt 0:00:40]} b5 {[%emt 0:05:49]} 12. f5 {[%emt 0:05:40]} Bb7 {[%emt 0:03:33]} 13. Qg3 {[%emt 0:04:01]} Kf8 {[%emt 0:00:15]} 14. Bg5 {[%emt 0:06:56]} h6 {[%emt 0:00:45]} 15. Bxf6 {[%emt 0:07:30]} gxf6 {[%emt 0:00:02]} 16. a4 {[%emt 0:01:15]} Rd8 {[%emt 0:09:26]} 17. Ne2 {[%emt 0:07:07]} Ke7 {[%emt 0:01:07]} 18. Qh4 {[%emt 0:04:13]} h5 {[%emt 0:08:56]} 19. Ng3 {[%emt 0:03:31]} Rdg8 {[%emt 0:08:39]} 20. Nxh5 {[%emt 0:01:22]} Rg5 {[%emt 0:00:08]} 21. g4 {[%emt 0:01:10]} Qd8 {[%emt 0:04:12]} 22. Qh3 {[%emt 0:08:45]} Bd4 {[%emt 0:14:44]} 23. c3 {[%emt 0:09:53]} Ba7 {[%emt 0:00:37]} 24. Rad1 {[%emt 0:08:09]} Qb6 {[%emt 0:06:22]} 25. a5 {[%emt 0:01:04]} Qxa5 {[%emt 0:00:58]} 26. Bc2 {[%emt 0:00:58]} Qc7 {[%emt 0:04:00]} 27. Bb3 {[%emt 0:05:35]} Bc8 {[%emt 0:04:34]} 28. Qf3 {[%emt 0:06:37]} Rhg8 {[%emt 0:03:16]} 29. h3 {[%emt 0:01:18]} Qb6 {[%emt 0:03:33]} 30. Rd3 {[%emt 0:01:59]} a5 {[%emt 0:07:13]} 31. Rfd1 {[%emt 0:02:08]} a4 {[%emt 0:00:36]} 32. Ba2 {[%emt 0:01:58]} b4 {[%emt 0:02:08]} 33. Nxf6 {[%emt 0:04:35]} Kxf6 {[%emt 0:00:17]} 34. Rd6+ {[%emt 0:00:18]} Kg7 {[%emt 0:00:53]} 35. h4 {[%emt 0:04:13]} Rh8 {[%emt 0:00:15]} 36. Qg3 {[%emt 0:00:39]} f6 {[%emt 0:04:23]} 37. Kg2 {[%emt 0:02:53]} b3 {[%emt 0:04:00]} 38. Bb1 {[%emt 0:00:43]} Qf2+ {[%emt 0:01:08]} 39. Qxf2 {[%emt 0:00:08]} Rxg4+ {[%emt 0:00:01]} 40. Qg3 {[%emt 0:00:53]} Rxg3+ {[%emt 0:01:47]} 41. Kxg3 {[%emt 0:30:02]} Be3 {[%emt 0:02:13]} 42. Rxc6 {[%emt 0:00:00]} Bf4+ {[%emt 0:00:17]} 43. Kf3 {[%emt 0:00:00]} 1-0

[Event "121st Swiss Championship 2022"]
[Site "Samnaun-Compatsch"]
[Date "2022.07.09"]
[Round "8.5"]
[White "Georgescu, Lena"]
[Black "Loeffler, Markus"]
[Result "1-0"]
[ECO "B12"]
[WhiteElo "2279"]
[BlackElo "2278"]
[Annotator "RC"]
[PlyCount "109"]
[EventDate "2022.06.28"]
[EventType "swiss"]
[EventCountry "SUI"]
[SourceTitle "playchess.com"]
[Source "ChessBase"]
[SourceQuality "1"]
[TimeControl "40/5400+30:1800+30"]

1. e4 {[%emt 0:00:03]} c6 {[%emt 0:00:48]} 2. d4 {[%emt 0:00:23]} d5 {[%emt 0:00:06]} 3. e5 {[%emt 0:00:32]} Bf5 {[%emt 0:00:08]} 4. h4 {[%emt 0:00:03]} h5 {[%emt 0:00:09]} 5. Bd3 {[%emt 0:00:17]} Bxd3 {[%emt 0:00:19]} 6. Qxd3 {[%emt 0:00:04]} Qa5+ {[%emt 0:00:29]} 7. Nd2 {[%emt 0:00:09]} e6 {[%emt 0:00:17]} 8. Ngf3 {[%emt 0:00:07]} Nh6 {[%emt 0:00:48]} 9. O-O {[%emt 0:00:34]} Nf5 {[%emt 0:00:28]} 10. Nb3 {[%emt 0:02:12]} Qa6 {[%emt 0:01:16]} 11. Qd1 {[%emt 0:00:29]} Be7 {[%emt 0:06:45]} 12. g3 {[%emt 0:05:05]} b6 {[%emt 0:13:10]} 13. Bg5 {[%emt 0:03:18]} Bxg5 {[%emt 0:00:29]} 14. Nxg5 {[%emt 0:00:28]} Nd7 {[%emt 0:01:40]} 15. Re1 {[%emt 0:02:00]} g6 {[%emt 0:05:16]} 16. c3 {[%emt 0:05:31]} Rc8 {[%emt 0:01:03]} 17. Nc1 {[%emt 0:09:05]} c5 {[%emt 0:04:08]} 18. Ne2 {[%emt 0:02:30]} Kf8 {[%emt 0:08:59]} 19. dxc5 {[%emt 0:05:33]} Nxc5 {[%emt 0:13:04]} 20. Nd4 {[%emt 0:10:52]} Qd3 {[%emt 0:07:58]} 21. Nxf5 {[%emt 0:08:07]} Qxf5 {[%emt 0:02:43]} 22. Re3 {[%emt 0:02:46]} Rc7 {[%emt 0:00:01]} 23. Qe1 {[%emt 0:13:00]} Kg7 {[%emt 0:02:33]} 24. Rd1 {[%emt 0:03:19]} Qc2 {[%emt 0:03:04]} 25. Rd2 {[%emt 0:03:02]} Qa4 {[%emt 0:00:02]} 26. b3 {[%emt 0:02:30]} Qa3 {[%emt 0:04:35]} 27. Kg2 {[%emt 0:01:36]} Re8 {[%emt 0:10:39]} 28. Rf3 {[%emt 0:00:46]} Ree7 {[%emt 0:02:02]} 29. Qe2 {[%emt 0:02:13]} Qa6 {[%emt 0:02:40]} 30. Qe3 {[%emt 0:00:58]} Qb7 {[%emt 0:00:04]} 31. Rd4 {[%emt 0:03:32]} Red7 {[%emt 0:02:13]} 32. Kh2 {[%emt 0:04:22]} Ne4 {[%emt 0:00:54]} 33. Rd3 {[%emt 0:07:15]} Qa8 {[%emt 0:03:59]} 34. Rf4 {[%emt 0:02:14]} Nxg5 {[%emt 0:01:45]} 35. hxg5 {[%emt 0:00:03]} Qd8 {[%emt 0:00:11]} 36. Rdd4 {[%emt 0:01:06]} Qxg5 {[%emt 0:00:58]} 37. Rxf7+ {[%emt 0:00:42]} Kh6 {[%emt 0:00:01]} 38. f4 {[%emt 0:01:15]} Qg4 {[%emt 0:00:05]} 39. Rf6 {[%emt 0:00:57]} Rg7 {[%emt 0:02:38]} 40. Rxe6 {[%emt 0:00:46]} Kh7 {[%emt 0:00:32]} 41. Re8 {[%emt 0:09:09]} h4 {[%emt 0:05:04]} 42. gxh4 {[%emt 0:00:42]} Qxh4+ {[%emt 0:03:32]} 43. Qh3 {[%emt 0:09:03]} Qxh3+ {[%emt 0:00:09]} 44. Kxh3 {[%emt 0:00:03]} Rxc3+ {[%emt 0:00:11]} 45. Kg4 {[%emt 0:00:10]} Rd7 {[%emt 0:11:52]} 46. e6 {[%emt 0:01:17]} Rdc7 {[%emt 0:00:14]} 47. Rxd5 {[%emt 0:01:07]} Kg7 {[%emt 0:00:08]} 48. f5 {[%emt 0:06:32]} gxf5+ {[%emt 0:05:03]} 49. Kg5 {[%emt 0:01:24]} Rg3+ {[%emt 0:01:42]} 50. Kxf5 {[%emt 0:00:19]} Rf3+ {[%emt 0:00:44]} 51. Ke5 {[%emt 0:00:53]} Rfc3 {[%emt 0:04:17]} 52. Rd7+ {[%emt 0:01:42]} Kg6 {[%emt 0:00:01]} 53. Rxc7 {[%emt 0:00:42]} Rxc7 {[%emt 0:00:03]} 54. Rg8+ {[%emt 0:00:08]} Kh7 {[%emt 0:00:12]} 55. Rg2 {[%emt 0:00:06]} 1-0

[Event "121st Swiss Championship 2022"]
[Site "Samnaun-Compatsch"]
[Date "2022.07.09"]
[Round "8.6"]
[White "Curien, Nicolas"]
[Black "Rohrer, Christophe"]
[Result "1-0"]
[ECO "A45"]
[WhiteElo "2198"]
[BlackElo "2246"]
[Annotator "RC"]
[PlyCount "47"]
[EventDate "2022.06.28"]
[EventType "swiss"]
[EventCountry "SUI"]
[SourceTitle "playchess.com"]
[Source "ChessBase"]
[SourceQuality "1"]
[TimeControl "40/5400+30:1800+30"]

1. d4 {[%emt 0:00:04]} Nf6 {[%emt 0:00:08]} 2. Bg5 {[%emt 0:00:06]} c5 {[%emt 0:00:09]} 3. d5 {[%emt 0:00:09]} Ne4 {[%emt 0:00:13]} 4. Bf4 {[%emt 0:00:08]} Qb6 {[%emt 0:00:15]} 5. Bc1 {[%emt 0:00:34]} g6 {[%emt 0:00:16]} 6. f3 {[%emt 0:00:24]} Nd6 {[%emt 0:00:14]} 7. e4 {[%emt 0:00:19]} Bg7 {[%emt 0:00:30]} 8. c3 {[%emt 0:00:16]} O-O {[%emt 0:01:23]} 9. h4 {[%emt 0:01:27]} f5 {[%emt 0:07:43]} 10. h5 {[%emt 0:01:24]} fxe4 {[%emt 0:01:57]} 11. hxg6 {[%emt 0:00:50]} hxg6 {[%emt 0:00:10]} 12. Nd2 {[%emt 0:14:41]} Be5 {[%emt 0:16:20]} 13. Qc2 {[%emt 0:06:31]} Nf5 {[%emt 0:21:07]} 14. Nxe4 {[%emt 0:06:47]} e6 {[%emt 0:01:08]} 15. Bc4 {[%emt 0:03:09]} Qc7 {[%emt 0:04:41]} 16. a4 {[%emt 0:04:18]} Nc6 {[%emt 0:06:12]} 17. dxc6 {[%emt 0:18:10]} d5 {[%emt 0:01:06]} 18. g4 {[%emt 0:01:34]} Ne7 {[%emt 0:10:49]} 19. Bh6 {[%emt 0:04:05]} Re8 {[%emt 0:06:33]} 20. Bg5 {[%emt 0:01:09]} dxe4 {[%emt 0:02:29]} 21. Qxe4 {[%emt 0:10:11]} Bg3+ {[%emt 0:02:25]} 22. Kf1 {[%emt 0:00:11]} Qxc6 {[%emt 0:02:01]} 23. Qd3 {[%emt 0:05:15]} Kg7 {[%emt 0:01:14]} 24. Bb5 {[%emt 0:02:13]} 1-0

[Event "121st Swiss Championship 2022"]
[Site "Samnaun-Compatsch"]
[Date "2022.07.09"]
[Round "8.7"]
[White "Stoeri, Laura"]
[Black "Pogan, Nikolas"]
[Result "0-1"]
[ECO "E14"]
[WhiteElo "2084"]
[BlackElo "2226"]
[Annotator "RC"]
[PlyCount "84"]
[EventDate "2022.06.28"]
[EventType "swiss"]
[EventCountry "SUI"]
[SourceTitle "playchess.com"]
[Source "ChessBase"]
[SourceQuality "1"]
[TimeControl "40/5400+30:1800+30"]

1. e4 {[%emt 0:00:03]} c6 {[%emt 0:03:40]} 2. c4 {[%emt 0:00:13]} d5 {[%emt 0:00:05]} 3. cxd5 {[%emt 0:00:08]} cxd5 {[%emt 0:00:03]} 4. exd5 {[%emt 0:00:06]} Nf6 {[%emt 0:00:03]} 5. Nc3 {[%emt 0:00:29]} Nxd5 {[%emt 0:01:12]} 6. Nf3 {[%emt 0:00:12]} Nc6 {[%emt 0:07:01]} 7. Bc4 {[%emt 0:00:18]} e6 {[%emt 0:14:06]} 8. O-O {[%emt 0:00:50]} Be7 {[%emt 0:02:19]} 9. d4 {[%emt 0:00:06]} Nxc3 {[%emt 0:15:16]} 10. bxc3 {[%emt 0:00:09]} O-O {[%emt 0:00:03]} 11. Re1 {[%emt 0:01:51]} b6 {[%emt 0:00:01]} 12. Bb3 {[%emt 0:09:48]} Bb7 {[%emt 0:08:30]} 13. Qd3 {[%emt 0:01:08]} Rc8 {[%emt 0:04:56]} 14. Bc2 {[%emt 0:17:35]} g6 {[%emt 0:00:03]} 15. Bh6 {[%emt 0:00:08]} Re8 {[%emt 0:00:09]} 16. Bd2 {[%emt 0:24:01]} Bf6 {[%emt 0:10:53]} 17. Re2 {[%emt 0:04:06]} Qc7 {[%emt 0:00:28]} 18. Rae1 {[%emt 0:00:54]} Nb4 19. cxb4 {[%emt 0:01:35]} Qxc2 {[%emt 0:02:23]} 20. Qa3 {[%emt 0:06:25]} Qc6 {[%emt 0:04:59]} 21. Qe3 {[%emt 0:05:26]} Qd5 {[%emt 0:02:20]} 22. Bc1 {[%emt 0:02:57]} Rc4 {[%emt 0:02:32]} 23. a3 {[%emt 0:04:10]} Rec8 {[%emt 0:02:23]} 24. Bb2 {[%emt 0:04:04]} g5 {[%emt 0:04:33]} 25. Rd1 {[%emt 0:00:40]} Rc2 {[%emt 0:01:38]} 26. Ne1 {[%emt 0:01:27]} Kg7 {[%emt 0:01:52]} 27. f3 {[%emt 0:01:18]} Rxe2 {[%emt 0:00:27]} 28. Qxe2 {[%emt 0:00:01]} Qb3 {[%emt 0:03:12]} 29. Rd2 {[%emt 0:02:38]} Bd5 {[%emt 0:00:56]} 30. h3 {[%emt 0:01:19]} h6 {[%emt 0:00:30]} 31. Kh2 {[%emt 0:00:05]} Be7 {[%emt 0:01:51]} 32. Nd3 {[%emt 0:04:05]} Bd6+ {[%emt 0:00:23]} 33. g3 {[%emt 0:00:37]} f6 {[%emt 0:00:14]} 34. Qf2 {[%emt 0:03:27]} h5 {[%emt 0:06:51]} 35. f4 {[%emt 0:00:01]} h4 {[%emt 0:00:12]} 36. gxh4 {[%emt 0:02:13]} gxf4 {[%emt 0:00:54]} 37. Nxf4 {[%emt 0:01:44]} Kf7 {[%emt 0:00:13]} 38. Kg1 {[%emt 0:01:26]} Rg8+ {[%emt 0:00:34]} 39. Kf1 {[%emt 0:00:51]} Bxf4 {[%emt 0:01:13]} 40. Qxf4 {[%emt 0:00:02]} Qxh3+ {[%emt 0:00:23]} 41. Ke2 {[%emt 0:02:27]} Rg2+ {[%emt 0:01:07]} 42. Kd1 {[%emt 0:00:04]} Bb3+ {[%emt 0:00:12]} 0-1